bitfinex-derivatives/quotes_ETHF0:USTF0_20250502
["timestamp","ask_amount","ask_price","bid_price","bid_amount"]
[1746204014325,2.91523131,1856.4,1856.3,1.7284]
[1746204015727,2.48046,1856.4,1856.3,1.7284]
[1746204016327,1.4036,1856.4,1856.3,2.80532]
[1746204016523,1.07686,1856.4,1856.3,2.80532]
[1746204016723,1.50916217,1856.4,1856.3,1.7284]
[1746204017429,0.43230217,1856.4,1856.3,2.80532]
[1746204017622,1.07681,1856.5,1856.3,2.80528]
[1746204017918,4.2846,1856.6,1856.4,1.6321]
[1746204018117,0.43223405,1856.5,1856.4,2.70892]
[1746204018625,1.50904405,1856.5,1856.4,1.6321]
[1746204018828,1.50904405,1856.5,1856.4,2.70896]
[1746204019023,1.50904405,1856.5,1856.4,1.6321]
[1746204019228,0.43223405,1856.5,1856.4,2.70896]
[1746204021123,0.43223405,1856.5,1856.4,6.40496]
[1746204021829,0.43223405,1856.5,1856.4,11.40496]
[1746204022126,1.07679,1856.6,1856.5,1.07676]
[1746204022328,1.07679,1856.6,1856.5,5.92216]
[1746204022725,1.07674,1856.7,1856.6,1.0767]
[1746204022921,1.07674,1856.7,1856.6,3.023]
[1746204023122,1.07674,1856.7,1856.6,1.621]
[1746204023426,1.07675,1856.6,1856.5,3.2078]
[1746204023627,2.78785,1856.6,1856.5,4.8288]
[1746204023927,3.22079586,1856.6,1856.5,4.8288]
[1746204024121,3.22079586,1856.6,1856.5,5.90561]
[1746204024428,3.22079586,1856.6,1856.5,4.8288]
[1746204024734,3.22079586,1856.6,1856.5,1.621]
[1746204026325,1.07686,1856.4,1856.3,4.6098]
[1746204026525,1.50980586,1856.4,1856.3,7.37212]
[1746204027431,1.50980586,1856.4,1856.3,3.0874]
[1746204027631,1.50980586,1856.4,1856.3,1.6854]
[1746204027832,1.07698,1856.2,1856.1,5.60259]
[1746204028232,1.07698,1856.2,1856.1,4.5256]
[1746204028431,1.51038054,1856.2,1856.1,5.60264]
[1746204029228,1.51038054,1856.2,1856.1,7.18904]
[1746204030536,0.43340054,1856.2,1856.1,7.18904]
[1746204030728,1.51038054,1856.2,1856.1,7.18904]
[1746204031327,1.51038054,1856.2,1856.1,6.112]
[1746204031530,1.51038054,1856.2,1856.1,2.9042]
[1746204031823,1.51038054,1856.2,1856.1,1.5864]
[1746204032025,3.14028054,1856.2,1856.1,1.5864]
[1746204033739,2.70688,1856.2,1856.1,1.5864]
[1746204034237,3.14058149,1856.2,1856.1,1.5864]
[1746204034839,1.51068149,1856.2,1856.1,1.5864]
[1746204035740,1.51068149,1856.2,1856.1,2.66344]
[1746204036138,1.51068149,1856.2,1856.1,1.5864]
[1746204036438,1.07704,1856.1,1856.0,1.29]
[1746204036738,1.07704,1856.1,1856.0,4.0627]
[1746204036931,1.51074149,1856.1,1856.0,4.0627]
[1746204037128,1.51074149,1856.1,1856.0,2.9856]
[1746204039238,1.51074149,1856.1,1856.0,4.0627]
[1746204039537,1.07704,1856.1,1856.0,4.0627]
[1746204039833,1.51193738,1856.1,1856.0,2.9856]
[1746204040339,1.51193738,1856.1,1856.0,4.0627]
[1746204041642,1.51193738,1856.1,1856.0,2.9856]
[1746204043345,4.32889738,1856.1,1855.7,3.2078]
[1746204043542,1.07727,1855.8,1855.7,3.2078]
[1746204043742,1.07719,1855.9,1855.8,1.07719]
[1746204044039,1.51208738,1855.9,1855.8,1.07719]
[1746204044544,1.07719,1855.9,1855.8,1.07719]
[1746204045444,1.07714,1856.0,1855.9,1.07714]
[1746204045644,1.07714,1856.0,1855.7,5.90097]
[1746204045645,1.07718,1855.9,1855.8,1.07718]
[1746204045838,1.07721,1855.8,1855.7,4.28504]
[1746204046447,1.07721,1855.8,1855.7,3.2078]
[1746204046945,1.07721,1855.8,1855.7,4.28507]
[1746204047745,1.07721,1855.8,1855.7,3.2078]
[1746204048547,1.07721,1855.8,1855.7,4.28507]
[1746204048744,1.07721,1855.8,1855.7,3.2078]
[1746204050947,1.07721,1855.8,1855.7,4.28507]
[1746204051148,1.07721,1855.8,1855.7,3.2078]
[1746204051745,1.07721,1855.8,1855.7,4.28507]
[1746204052236,1.07721,1855.8,1855.7,3.2078]
[1746204052645,1.07721,1855.8,1855.7,4.28507]
[1746204053647,1.07721,1855.8,1855.7,3.2078]
[1746204053851,1.07733,1855.6,1855.5,2.6895]
[1746204054148,1.07733,1855.6,1855.5,1.3735]
[1746204054550,2.75033,1855.6,1855.5,1.3735]
[1746204054848,1.07744,1855.4,1855.3,3.2078]
[1746204055040,1.07756,1855.2,1855.1,5.882]
[1746204055242,1.07755,1855.3,1855.1,5.882]
[1746204055843,1.07755,1855.3,1855.2,1.07756]
[1746204056051,1.07755,1855.3,1855.1,6.95957]
[1746204056256,1.07756,1855.2,1855.1,6.95957]
[1746204056550,1.50539544,1855.2,1855.1,5.882]
[1746204056753,1.50539544,1855.2,1855.1,6.95962]
[1746204057449,1.50539544,1855.2,1855.1,5.882]
[1746204057649,1.07768,1855.0,1854.9,10.26689243]
[1746204057841,1.07768,1855.0,1854.9,7.00433]
[1746204058153,1.50551544,1855.0,1854.9,10.70033]
[1746204058349,1.50551544,1855.0,1854.9,9.6226]
[1746204059140,1.50551544,1855.0,1854.9,12.34473]
[1746204059647,1.50551544,1855.0,1854.9,11.267]
[1746204059953,1.50551544,1855.0,1854.9,3.696]
[1746204060151,0.42783544,1855.0,1854.7,8.64884]
[1746204060351,1.07778,1854.9,1854.8,1.6444]
[1746204060752,1.07779,1854.8,1854.7,5.9266]
[1746204061052,1.07006201,1854.7,1854.6,1.6444]
[1746204061356,1.07791,1854.6,1854.5,7.05909243]
[1746204061654,1.07791,1854.6,1854.5,8.70349243]
[1746204061851,1.07791,1854.6,1854.3,4.28587]
[1746204061852,1.0781,1854.3,1854.0,5.916]
[1746204062049,1.0781,1854.3,1854.2,2.72254]
[1746204062245,1.50593544,1854.3,1854.2,1.6444]
[1746204062645,1.50593544,1854.3,1854.2,2.72254]
[1746204063048,1.50593544,1854.3,1854.2,6.41854]
[1746204063254,1.50593544,1854.3,1854.2,5.3404]
[1746204063649,1.50593544,1854.3,1854.2,6.41854]
[1746204063850,0.42783544,1854.3,1854.2,6.41854]
[1746204064051,1.50591544,1854.3,1854.2,5.3404]
[1746204064456,0.42783544,1854.3,1854.2,6.41854]
[1746204064955,1.07798,1854.5,1854.2,11.41854]
[1746204065154,1.07795,1854.6,1854.5,1.07795]
[1746204065355,1.07795,1854.6,1854.5,5.37715]
[1746204065555,1.07795,1854.6,1854.5,4.2992]
[1746204065752,1.07791,1854.7,1854.5,4.2992]
[1746204065953,3.2078,1855.0,1854.6,1.6481]
[1746204066152,1.07778,1854.9,1854.8,1.07778]
[1746204066352,3.5918262,1855.5,1854.8,7.0898]
[1746204066552,3.5918262,1855.5,1855.4,4.28524]
[1746204066750,4.0,1855.6,1855.5,1.07739]
[1746204066952,4.0,1855.6,1855.5,44.88809]
[1746204067154,4.0,1855.6,1855.5,7.78409]
[1746204068572,5.07733,1855.6,1855.5,6.7067]
[1746204068965,4.0,1855.6,1855.5,7.78409]
[1746204069163,4.0,1855.6,1855.5,4.08809]
[1746204069365,5.07733,1855.6,1855.5,3.0107]
[1746204069768,5.07733,1855.6,1855.5,1.6481]
[1746204069970,6.73013,1855.6,1855.5,1.6481]
[1746204070370,6.73013,1855.6,1855.5,2.72549]
[1746204070371,4.0,1855.6,1855.5,2.72549]
[1746204071071,4.0,1855.6,1855.5,6.42149]
[1746204076876,4.42476666,1855.6,1855.5,6.42149]
[1746204080572,4.42476666,1855.6,1855.5,8.5519]
[1746204080573,5.50209666,1855.6,1855.5,8.5519]
[1746204081073,5.50209666,1855.6,1855.5,4.8559]
[1746204081378,5.50209666,1855.6,1855.5,5.93329]
[1746204081676,7.13539666,1855.6,1855.5,5.93329]
[1746204082472,6.05806666,1855.6,1855.5,5.93329]
[1746204082671,4.42476666,1855.6,1855.5,5.93329]
[1746204082874,5.50209666,1855.6,1855.5,5.93329]
[1746204083381,5.50209666,1855.6,1855.5,4.8559]
[1746204083575,5.50209666,1855.6,1855.5,5.93329]
[1746204083876,5.50209666,1855.6,1855.5,2.72549]
[1746204084368,4.42476666,1855.6,1855.5,2.72549]
[1746204085881,4.42476666,1855.6,1855.5,5.93329]
[1746204086082,4.42476666,1855.6,1855.5,9.62929]
[1746204087087,4.0,1855.6,1855.5,9.62929]
[1746204088080,4.42484704,1855.6,1855.5,9.62929]
[1746204088486,4.0,1855.6,1855.5,9.62929]
[1746204093379,4.42569876,1855.6,1855.5,9.62929]
[1746204093588,4.42569544,1855.6,1855.5,9.62929]
[1746204094485,4.42626081,1855.6,1855.5,9.62929]
[1746204095379,3.32099951,1855.6,1855.5,14.62929]
[1746204095579,3.32099951,1855.6,1855.5,9.62929]
[1746204096174,3.32099951,1855.6,1855.5,50.42929]
[1746204100392,4.39832951,1855.6,1855.5,50.42929]
[1746204100592,4.39832951,1855.6,1855.5,7.98119]
[1746204100792,4.39832951,1855.6,1855.5,3.696]
[1746204100992,9.39832951,1855.6,1855.5,3.696]
[1746204101293,1.07744,1855.4,1855.3,5.87026]
[1746204101993,3.10038951,1855.4,1855.3,5.87026]
[1746204102192,3.10038951,1855.4,1855.3,9.56626]
[1746204102587,3.10038951,1855.4,1855.3,6.9038]
[1746204102791,9.45388951,1855.4,1855.3,3.696]
[1746204103186,1.07762,1855.1,1855.0,8.15243]
[1746204103490,1.50446951,1855.1,1855.0,1.07763]
[1746204103689,0.42684951,1855.1,1855.0,1.07763]
[1746204104191,2.02294951,1855.1,1855.0,4.77363]
[1746204105290,2.02294951,1855.1,1855.0,6.37363]
[1746204106494,3.10056951,1855.1,1855.0,6.37363]
[1746204106887,2.02294951,1855.1,1855.0,6.37363]
[1746204107090,3.10056951,1855.1,1855.0,2.67763]
[1746204107292,2.02294951,1855.1,1855.0,2.67763]
[1746204107896,3.10056951,1855.1,1855.0,2.67763]
[1746204108396,2.02294951,1855.1,1855.0,2.67763]
[1746204108695,3.10056951,1855.1,1855.0,2.67763]
[1746204109995,3.10056951,1855.1,1855.0,5.88543]
[1746204110598,2.02294951,1855.1,1855.0,5.88543]
[1746204111097,3.10056951,1855.1,1855.0,5.88543]
[1746204112294,0.42684951,1855.1,1855.0,5.88543]
[1746204113098,0.42684951,1855.1,1855.0,9.58143]
[1746204113893,0.42684951,1855.3,1855.0,9.58143]
[1746204114099,0.42684951,1855.3,1855.2,1.07756]
[1746204114496,1.07762,1855.1,1855.0,3.696]
[1746204114897,1.50446951,1855.1,1855.0,3.696]
[1746204115099,2.82306951,1855.1,1855.0,3.696]
[1746204116801,2.39622,1855.1,1855.0,3.696]
[1746204117100,7.82230046,1855.1,1855.0,3.696]
[1746204117302,1.07779,1854.8,1854.7,5.62902]
[1746204117498,1.07779,1854.8,1854.7,7.20622]
[1746204118000,3.082,1855.0,1854.7,7.20622]
[1746204118001,2.76409,1854.9,1854.8,1.07779]
[1746204118198,2.76409,1854.9,1854.8,2.65499]
[1746204118399,3.19017046,1854.9,1854.8,2.65499]
[1746204118704,3.19017046,1854.9,1854.8,1.5772]
[1746204118906,3.19017046,1854.9,1854.8,2.65499]
[1746204119106,3.19017046,1854.9,1854.8,6.35099]
[1746204120401,2.11238046,1854.9,1854.8,6.35099]
[1746204120601,3.19011046,1854.9,1854.8,6.35099]
[1746204120799,2.11238046,1854.9,1854.8,6.35099]
[1746204120995,0.42608046,1854.9,1854.8,6.35099]
[1746204121608,1.50381046,1854.9,1854.8,5.2732]
[1746204121906,0.42608046,1854.9,1854.8,6.35099]
[1746204124506,1.50381046,1854.9,1854.8,6.35099]
[1746204124907,1.50381046,1854.9,1854.8,3.696]
[1746204125210,1.07791,1854.6,1854.5,1.644]
[1746204125405,1.07797,1854.5,1854.4,2.42683]
[1746204125612,1.50405046,1854.5,1854.4,2.42683]
[1746204125901,0.42608046,1854.5,1854.4,2.42683]
[1746204126106,0.42608046,1854.5,1854.4,6.12283]
[1746204126913,1.50405046,1854.5,1854.4,6.12283]
[1746204127610,0.42608046,1854.5,1854.4,9.33063]
[1746204128615,1.50405046,1854.5,1854.4,6.12283]
[1746204130511,1.50405046,1854.5,1854.4,5.0448]
[1746204130708,1.50405046,1854.5,1854.4,6.12283]
[1746204131506,3.16965046,1854.5,1854.4,6.12283]
[1746204131711,8.16965046,1854.5,1854.4,3.696]
[1746204132313,1.07808,1854.3,1854.2,9.67729]
[1746204132510,2.79936,1854.4,1854.3,1.07808]
[1746204133113,2.79936,1854.4,1854.3,4.77408]
[1746204133314,3.22613643,1854.4,1854.3,4.77408]
[1746204133511,1.50483643,1854.4,1854.3,4.77408]
[1746204134611,0.42677643,1854.4,1854.3,4.77408]
[1746204135006,1.50480643,1854.4,1854.3,4.77408]
[1746204135512,0.42677643,1854.4,1854.3,4.77408]
[1746204138924,0.42677643,1854.4,1854.3,9.77408]
[1746204139215,1.07777,1854.9,1854.8,1.07779]
[1746204139806,1.07779,1854.8,1854.7,3.59931]
[1746204140111,1.07779,1854.9,1854.8,1.07776]
[1746204140415,4.64752563,1855.0,1854.9,1.07773]
[1746204141108,4.64752563,1855.0,1854.9,4.77373]
[1746204142111,4.64752563,1855.0,1854.9,3.696]
[1746204142307,11.26712563,1855.0,1854.9,3.696]
[1746204142510,2.69731,1855.0,1854.9,3.696]
[1746204142915,2.69731,1855.0,1854.9,4.77373]
[1746204143714,2.69731,1855.0,1854.9,3.696]
[1746204144305,2.69731,1855.0,1854.9,4.77373]
[1746204144917,1.07767,1855.1,1855.0,1.07766]
[1746204145218,1.07767,1855.1,1855.0,4.77366]
[1746204146116,1.07767,1855.1,1855.0,3.696]
[1746204146616,1.07767,1855.1,1855.0,5.4114]
[1746204146808,2.79367,1855.1,1855.0,5.4114]
[1746204149619,2.79367,1855.1,1855.0,3.696]
[1746204150415,1.07767,1855.1,1855.0,4.77368]
[1746204150614,1.07767,1855.1,1855.0,6.51538]
[1746204150814,1.07767,1855.1,1855.0,5.4377]
[1746204151117,2.77967,1855.1,1855.0,5.4377]
[1746204151319,2.77967,1855.1,1855.0,6.51538]
[1746204151507,3.20234263,1855.1,1855.0,6.51538]
[1746204151713,1.50034263,1855.1,1855.0,6.51538]
[1746204152012,1.50034263,1855.1,1855.0,7.70468]
[1746204152720,0.42267263,1855.1,1855.0,7.70468]
[1746204152919,1.50029263,1855.1,1855.0,7.70468]
[1746204153119,0.42267263,1855.1,1855.0,7.70468]
[1746204156420,0.42267263,1855.1,1855.0,8.06202716]
[1746204156622,0.42267263,1855.1,1855.0,13.06202716]
[1746204158222,0.42267263,1855.1,1855.0,53.86202716]
[1746204158616,2.02651617,1855.4,1855.3,1.0775]
[1746204158920,0.049603,1855.4,1855.3,8.1243]
[1746204159119,5.35472345,1855.5,1855.4,1.07744]
[1746204159518,5.35472345,1855.5,1855.4,43.50564]
[1746204160215,5.35472345,1855.5,1855.4,47.20164]
[1746204160421,5.35472345,1855.5,1855.4,47.60960365]
[1746204162021,2.89415,1855.6,1855.5,1.07739]
[1746204162209,2.89415,1855.6,1855.5,9.69729]
[1746204162412,2.89415,1855.6,1855.5,10.88189]
[1746204163422,2.89415,1855.6,1855.5,51.68189]
[1746204165222,8.88e-06,1855.6,1855.5,51.68189]
[1746204166423,8.88e-06,1855.6,1855.5,57.59789]
[1746204166926,2.71862,1856.3,1856.2,1.07698]
[1746204167221,1.1564,1856.4,1856.3,1.07692]
[1746204167422,2.23327,1856.4,1856.3,1.07692]
[1746204167625,2.23326,1856.4,1856.3,2.68682]
[1746204168215,1.1564,1856.4,1856.3,2.68682]
[1746204168416,2.23326,1856.4,1856.3,2.68682]
[1746204168825,3.87113,1856.5,1856.4,1.07686]
[1746204169125,3.87113,1856.5,1856.4,2.81106]
[1746204169921,1.07686,1856.4,1856.3,3.696]
[1746204170122,2.75626,1856.4,1856.3,1.07692]
[1746204172527,1.07692,1856.3,1856.2,2.81115]
[1746204172721,3.94612,1856.3,1856.2,1.07695]
[1746204173223,3.94612,1856.3,1856.2,4.77295]
[1746204175522,3.94612,1856.3,1856.2,3.696]
[1746204176220,1.07704,1856.1,1856.0,4.28487]
[1746204177027,2.26924,1856.1,1856.0,3.2078]
[1746204177932,1.07721,1855.9,1855.8,4.28499]
[1746204178126,1.07721,1855.9,1855.8,7.98099]
[1746204178526,2.66221,1855.9,1855.8,7.98099]
[1746204179329,2.66221,1855.9,1855.8,4.77319]
[1746204180833,2.66221,1855.9,1855.8,3.696]
[1746204181030,2.66221,1855.9,1855.8,6.9038]
[1746204181330,2.66221,1855.9,1855.8,4.28501]
[1746204182133,2.66221,1855.9,1855.8,3.2078]
[1746204182325,2.66221,1855.9,1855.8,4.28501]
[1746204183030,1.585,1855.9,1855.8,4.28501]
[1746204183237,1.2432,1856.0,1855.9,1.07715]
[1746204183533,2.26924,1856.1,1856.0,1.0771]
[1746204184127,2.26924,1856.1,1856.0,4.7731]
[1746204184532,3.95584,1856.1,1856.0,3.696]
[1746204185935,3.95584,1856.1,1856.0,4.7731]
[1746204189633,1.07704,1856.1,1856.0,4.7731]
[1746204189834,2.28113,1856.2,1856.1,1.07704]
[1746204190035,3.92868,1856.2,1856.1,1.07704]
[1746204190630,3.92868,1856.2,1856.1,2.82544]
[1746204191237,1.07704,1856.1,1856.0,6.9038]
[1746204191436,2.80784,1856.1,1856.0,3.696]
[1746204192238,1.0771,1856.0,1855.9,1.07712]
[1746204192542,1.07712,1856.0,1855.9,1.07711]
[1746204193032,1.07712,1856.0,1855.9,2.82551]
[1746204193241,1.07721,1855.8,1855.7,4.285]
[1746204193445,1.07721,1855.8,1855.7,5.894]
[1746204194036,2.65791,1855.8,1855.7,5.894]
[1746204194242,1.07721,1855.9,1855.8,1.0772]
[1746204194436,1.07721,1855.9,1855.8,2.6862]
[1746204195340,1.07721,1855.9,1855.8,7.6124]
[1746204198137,1.07721,1855.9,1855.8,5.305]
[1746204198336,2.82011,1855.9,1855.8,6.38221]
[1746204198547,1.07721,1855.9,1855.8,6.38221]
[1746204200142,1.07721,1855.9,1855.8,2.68621]
[1746204201245,1.07721,1855.9,1855.8,6.38221]
[1746204202237,1.07721,1855.9,1855.8,2.68621]
[1746204205646,1.6912,1856.1,1855.8,1.609]
[1746204205835,1.07702,1856.2,1856.1,1.07704]
[1746204206048,1.07702,1856.2,1856.1,4.28484]
[1746204206747,1.07702,1856.2,1856.1,5.97114]
[1746204208150,1.07696,1856.3,1856.2,1.07694]
[1746204209555,1.07698,1856.2,1856.1,2.76329]
[1746204210156,1.07698,1856.3,1856.2,1.07696]
[1746204210656,1.07692,1856.3,1856.2,1.07696]
[1746204211155,1.07692,1856.3,1856.2,6.43846]
[1746204211658,1.07692,1856.3,1856.2,5.3615]
[1746204211853,1.07692,1856.3,1856.2,6.43848]
[1746204212557,1.07692,1856.3,1856.2,7.62388]
[1746204214256,1.07692,1856.3,1856.2,6.5469]
[1746204214451,1.07692,1856.3,1856.2,7.62388]
[1746204215253,1.07692,1856.3,1856.2,3.92788]
[1746204216260,2.82891,1856.4,1856.3,1.07692]
[1746204216560,4.88282,1856.6,1856.5,1.07681]
[1746204217052,4.88282,1856.6,1856.5,4.77281]
[1746204217053,1.07682,1856.6,1856.5,4.77281]
[1746204217259,1.07675,1856.7,1856.6,1.07672]
[1746204217459,1.07675,1856.7,1856.6,2.77962]
[1746204217859,1.07675,1856.7,1856.6,5.98742]
[1746204218060,1.07659,1856.9,1856.8,1.0766]
[1746204218650,1.07659,1856.9,1856.8,3.4566]
[1746204219355,1.07659,1856.9,1856.8,2.38]
[1746204219759,1.07659,1856.9,1856.8,4.0829]
[1746204220555,1.07659,1856.9,1856.8,8.36733]
[1746204220951,6.49702,1857.2,1856.8,7.2907]
[1746204221156,1.07657,1857.0,1856.9,1.5823]
[1746204221459,1.07657,1857.0,1856.9,2.65887]
[1746204222160,1.07657,1857.0,1856.9,5.2783]
[1746204224957,1.07657,1857.0,1856.9,3.696]
[1746204225262,1.07663,1856.8,1856.7,2.80509]
[1746204226261,1.07663,1856.8,1856.7,6.50109]
[1746204232066,1.07662,1856.9,1856.8,1.0766]
[1746204232266,1.07662,1856.9,1856.8,2.7515]
[1746204233066,1.07662,1856.9,1856.8,6.4475]
[1746204234268,1.07662,1856.9,1856.8,9.6553]
[1746204235864,1.07657,1857.0,1856.9,1.07654]
[1746204236072,1.07643,1857.2,1857.1,1.07646]
[1746204236265,1.07627,1857.5,1857.4,1.07628]
[1746204236465,1.07613,1857.7,1857.5,1.07618]
[1746204236660,1.07613,1857.7,1857.6,5.49477]
[1746204236864,1.07613,1857.7,1857.6,6.1419]
[1746204237270,1.07613,1857.7,1857.6,7.21807]
[1746204237470,1.07609,1857.8,1857.7,1.0761]
[1746204237670,1.07609,1857.8,1857.7,2.7994]
[1746204237873,1.07609,1857.8,1857.7,1.7233]
[1746204238361,1.07609,1857.8,1857.7,2.79941]
[1746204238568,1.07609,1857.8,1857.7,1.7233]
[1746204239067,1.07609,1857.8,1857.7,5.4193]
[1746204240169,7.69023,1857.8,1857.4,3.2078]
[1746204240375,1.07623,1857.5,1857.4,3.2078]
[1746204240673,1.07628,1857.4,1857.3,1.6664]
[1746204241269,1.07628,1857.4,1857.3,2.74274]
[1746204241666,1.07628,1857.4,1857.3,1.6664]
[1746204242274,1.07628,1857.4,1857.3,5.3624]
[1746204243572,1.07628,1857.4,1857.3,6.43874]
[1746204244374,1.07628,1857.4,1857.3,5.3624]
[1746204245173,1.07628,1857.4,1857.3,1.6664]
[1746204245670,1.07627,1857.5,1857.3,1.6664]
[1746204245972,1.07627,1857.5,1857.4,4.4018]
[1746204246182,1.07627,1857.5,1857.4,5.47808]
[1746204246478,1.07627,1857.5,1857.4,7.11158]
[1746204246676,9.6564898,1857.7,1857.6,1.07617]
[1746204246882,9.6564898,1857.7,1857.6,4.28397]
[1746204247178,10.7325998,1857.7,1857.6,4.28397]
[1746204247477,10.7325998,1857.7,1857.6,7.12117]
[1746204248075,10.7325998,1857.7,1857.6,6.045]
[1746204248377,10.7325998,1857.7,1857.6,7.12117]
[1746204248681,10.7325998,1857.7,1857.6,6.045]
[1746204248976,1.07611,1857.7,1857.6,6.045]
[1746204250371,1.07611,1857.7,1857.6,7.12117]
[1746204250772,1.07611,1857.7,1857.6,6.045]
[1746204251580,1.07611,1857.7,1857.6,7.12117]
[1746204252679,1.07603,1857.9,1857.8,1.07601]
[1746204252879,1.07605,1857.8,1857.7,3.97726]
[1746204253074,1.07605,1857.8,1857.7,2.9012]
[1746204253274,1.07605,1857.8,1857.7,5.3562]
[1746204254379,1.07605,1857.8,1857.7,1.6602]
[1746204254980,1.07623,1857.5,1857.4,5.52506]
[1746204255184,1.07623,1857.5,1857.4,6.1941]
[1746204255578,1.07623,1857.5,1857.4,7.27038]
[1746204255779,1.07623,1857.5,1857.4,6.1941]
[1746204256179,1.07623,1857.5,1857.4,4.9531]
[1746204256381,2.79163,1857.5,1857.4,4.9531]
[1746204256683,2.79163,1857.5,1857.4,6.02938]
[1746204256984,1.07623,1857.5,1857.4,4.9531]
[1746204257175,1.07623,1857.5,1857.4,8.6491]
[1746204257883,2.23363,1857.5,1857.4,8.6491]
[1746204258073,2.23363,1857.5,1857.4,6.9038]
[1746204258278,3.38483,1857.5,1857.4,3.2078]
[1746204258885,1.07628,1857.4,1857.3,2.7129]
[1746204259081,2.75198,1857.4,1857.3,3.78924]
[1746204259480,2.75198,1857.4,1857.3,2.7129]
[1746204259675,2.75198,1857.4,1857.3,1.5777]
[1746204259870,1.07634,1857.3,1857.2,3.2078]
[1746204260076,2.75204,1857.3,1857.2,3.2078]
[1746204260285,1.07634,1857.3,1857.2,6.0112]
[1746204261375,1.07634,1857.3,1857.2,6.01115]
[1746204265683,2.23367,1857.5,1857.4,1.07628]
[1746204265888,1.07627,1857.5,1857.4,1.07628]
[1746204266277,1.07627,1857.5,1857.4,6.48878]
[1746204266473,1.07627,1857.5,1857.4,5.4125]
[1746204267186,1.07627,1857.5,1857.4,6.48878]
[1746204269484,1.07623,1857.5,1857.4,6.48878]
[1746204269679,2.22911,1857.6,1857.5,1.07623]
[1746204269879,2.22911,1857.6,1857.5,3.90963]
[1746204270079,4.86416,1857.7,1857.6,1.07617]
[1746204270287,3.788,1857.7,1857.6,3.96847]
[1746204270488,1.07611,1857.7,1857.6,7.17627]
[1746204271391,1.07611,1857.7,1857.6,3.96847]
[1746204274487,1.07611,1857.7,1857.6,2.8923]
[1746204274992,1.07611,1857.7,1857.6,3.96847]
[1746204276689,1.07611,1857.7,1857.6,2.8923]
[1746204276988,1.07611,1857.7,1857.6,3.96847]
[1746204283693,1.07611,1857.7,1857.6,2.8923]
[1746204284189,1.07611,1857.7,1857.6,3.96847]
[1746204285792,1.07611,1857.7,1857.6,2.8923]
[1746204286295,1.07611,1857.7,1857.6,3.96847]
[1746204286696,1.07611,1857.7,1857.6,2.8923]
[1746204288399,1.07611,1857.7,1857.6,3.96847]
[1746204288596,1.07611,1857.7,1857.6,2.8923]
[1746204290099,1.07623,1857.5,1857.4,3.2078]
[1746204290299,1.07623,1857.5,1857.4,4.8004]
[1746204290693,2.31143,1857.5,1857.4,4.8004]
[1746204291703,2.31143,1857.5,1857.4,5.87668]
[1746204292001,2.31143,1857.5,1857.4,4.8004]
[1746204293999,5.89940142,1857.5,1857.4,4.8004]
[1746204294203,5.90534845,1857.5,1857.4,4.8004]
[1746204295501,8.75374845,1857.5,1857.4,4.8004]
[1746204297802,9.44009763,1857.5,1857.4,4.8004]
[1746204298897,6.59169763,1857.5,1857.4,4.8004]
[1746204300505,1.07657,1856.9,1856.8,3.2078]
[1746204300808,1.07657,1856.9,1856.8,2.25469]
[1746204302105,1.07657,1856.9,1856.8,3.98259]
[1746204302306,1.07657,1856.9,1856.8,2.906]
[1746204304108,1.07669,1856.7,1856.6,7.05299985]
[1746204304408,4.28449,1856.7,1856.6,7.05299985]
[1746204304611,4.28449,1856.7,1856.6,8.70139985]
[1746204304908,6.00439,1856.7,1856.6,8.70139985]
[1746204305510,2.79659,1856.7,1856.6,8.70139985]
[1746204306512,6.00439,1856.7,1856.6,1.6484]
[1746204307210,4.28449,1856.7,1856.6,1.6484]
[1746204307413,3.2078,1856.9,1856.6,1.6484]
[1746204307713,1.07663,1856.8,1856.7,1.1733]
[1746204308009,1.07663,1856.8,1856.7,2.8727]
[1746204308205,1.07663,1856.8,1856.7,3.696]
[1746204308513,7.76043,1856.8,1856.7,3.696]
[1746204309211,1.07681,1856.5,1856.4,1.1681]
[1746204309905,2.67111,1856.5,1856.4,1.1681]
[1746204310501,2.69217,1856.4,1856.1,3.2078]
[1746204310705,1.07704,1856.1,1856.0,1.6612]
[1746204310901,5.89998,1856.4,1856.0,1.6612]
[1746204311416,1.07704,1856.1,1856.0,2.73825]
[1746204311809,1.07703,1856.2,1856.0,2.73825]
[1746204312009,1.07703,1856.2,1856.1,1.6612]
[1746204312807,1.07704,1856.1,1856.0,3.696]
[1746204313113,1.0771,1856.0,1855.9,1.6722]
[1746204313302,4.2849,1856.0,1855.9,1.6722]
[1746204314818,3.2078,1856.0,1855.9,2.74935]
[1746204315617,4.2849,1856.0,1855.9,1.6722]
[1746204315817,1.0771,1856.0,1855.9,1.6722]
[1746204316020,1.0771,1856.0,1855.9,2.74935]
[1746204316616,3.83958,1856.2,1855.9,2.74935]
[1746204316617,1.07708,1856.1,1856.0,1.0771]
[1746204316818,3.761,1856.3,1856.0,3.85145]
[1746204317018,1.07704,1856.2,1856.1,1.1437]
[1746204317218,1.07704,1856.2,1856.1,2.7806]
[1746204319712,3.2078,1856.6,1856.1,2.7806]
[1746204319916,1.07686,1856.4,1856.3,1.07688]
[1746204320119,2.69207,1856.5,1856.1,1.1437]
[1746204320418,1.07694,1856.3,1856.2,1.07696]
[1746204320914,1.07698,1856.2,1856.1,1.1437]
[1746204321113,4.44337,1856.5,1856.1,1.1437]
[1746204321114,1.07697,1856.3,1856.2,1.07698]
[1746204321611,1.07697,1856.3,1856.1,2.22069]
[1746204321812,1.07697,1856.3,1856.2,1.07698]
[1746204322820,1.07697,1856.3,1856.1,1.1437]